[Event "*** Titled Tuesday Blitz AM"]
[Site "Chess.com"]
[Date "2020.01.07"]
[Round "9"]
[White "ChessQueen"]
[Black "Artem_Ilyin"]
[Result "1-0"]
[WhiteElo "2662"]
[BlackElo "2529"]
[TimeControl "180+2"]
[EndTime "11:03:52 PST"]
[Termination "ChessQueen won by resignation"]

1. e4 {[%clk 0:03:01.9]} 1... c5 {[%clk 0:02:58.8]} 2. c3 {[%clk 0:03:02]} 2...
d5 {[%clk 0:02:52.1]} 3. exd5 {[%clk 0:03:02.8]} 3... Qxd5 {[%clk 0:02:54]} 4.
d4 {[%clk 0:03:04.1]} 4... Nf6 {[%clk 0:02:54.7]} 5. Nf3 {[%clk 0:03:05.5]} 5...
e6 {[%clk 0:02:55.9]} 6. Be2 {[%clk 0:03:04.5]} 6... Be7 {[%clk 0:02:51.7]} 7.
O-O {[%clk 0:03:04.4]} 7... O-O {[%clk 0:02:52.2]} 8. c4 {[%clk 0:03:05.3]} 8...
Qf5 {[%clk 0:02:42.5]} 9. Bd3 {[%clk 0:03:00.6]} 9... Qh5 {[%clk 0:02:41]} 10.
dxc5 {[%clk 0:02:58.7]} 10... Bxc5 {[%clk 0:02:35.9]} 11. Nc3 {[%clk 0:02:59.9]}
11... Nc6 {[%clk 0:02:25.3]} 12. Bg5 {[%clk 0:02:59.2]} 12... Be7 {[%clk
0:02:18]} 13. Qb1 {[%clk 0:02:55.2]} 13... b6 {[%clk 0:02:10.1]} 14. Ne4 {[%clk
0:02:44.6]} 14... Nxe4 {[%clk 0:01:50.7]} 15. Bxe7 {[%clk 0:02:42.1]} 15... Nxe7
{[%clk 0:01:44.5]} 16. Bxe4 {[%clk 0:02:43.4]} 16... Rb8 {[%clk 0:01:45]} 17.
Rd1 {[%clk 0:02:44.6]} 17... e5 {[%clk 0:01:36.8]} 18. c5 {[%clk 0:02:03]} 18...
bxc5 {[%clk 0:01:30]} 19. Qc2 {[%clk 0:02:04.2]} 19... Ng6 {[%clk 0:00:55.4]}
20. Qxc5 {[%clk 0:01:57.5]} 20... Rxb2 {[%clk 0:00:54.1]} 21. Qxa7 {[%clk
0:01:49.9]} 21... Nf4 {[%clk 0:00:51.7]} 22. Qe7 {[%clk 0:01:20]} 22... Ne6
{[%clk 0:00:18.4]} 23. h3 {[%clk 0:01:10]} 23... Ba6 {[%clk 0:00:18.3]} 24. Rd5
{[%clk 0:01:04.8]} 24... Rb7 {[%clk 0:00:10.4]} 25. Qd6 {[%clk 0:01:03.1]} 25...
Bc4 {[%clk 0:00:09.3]} 26. Rxe5 {[%clk 0:01:02.7]} 1-0

[Event "*** Titled Tuesday Blitz AM"]
[Site "Chess.com"]
[Date "2020.01.07"]
[Round "9"]
[White "JSMastropiero"]
[Black "GMCarbone"]
[Result "0-1"]
[WhiteElo "2374"]
[BlackElo "2275"]
[TimeControl "180+2"]
[EndTime "11:03:57 PST"]
[Termination "GMCarbone won by resignation"]

1. e4 {[%clk 0:03:01.9]} 1... e5 {[%clk 0:02:53.5]} 2. Nf3 {[%clk 0:03:01.6]}
2... Nc6 {[%clk 0:02:55]} 3. Nc3 {[%clk 0:03:02.1]} 3... Nf6 {[%clk 0:02:55.4]}
4. Bb5 {[%clk 0:03:02.7]} 4... Bb4 {[%clk 0:02:56.2]} 5. O-O {[%clk 0:03:03.2]}
5... O-O {[%clk 0:02:54.4]} 6. d3 {[%clk 0:03:03.9]} 6... Bxc3 {[%clk
0:02:54.5]} 7. bxc3 {[%clk 0:03:04.2]} 7... d6 {[%clk 0:02:56]} 8. Re1 {[%clk
0:03:03.8]} 8... Ne7 {[%clk 0:02:49.3]} 9. d4 {[%clk 0:03:03.4]} 9... Ng6 {[%clk
0:02:49.8]} 10. h3 {[%clk 0:02:49.8]} 10... h6 {[%clk 0:02:46.3]} 11. Rb1 {[%clk
0:02:45.3]} 11... c6 {[%clk 0:02:39.3]} 12. Bf1 {[%clk 0:02:45.7]} 12... Qc7
{[%clk 0:02:40.4]} 13. g3 {[%clk 0:02:46.1]} 13... Be6 {[%clk 0:02:38]} 14. Nh2
{[%clk 0:02:22.4]} 14... Bxa2 {[%clk 0:02:36.9]} 15. Ra1 {[%clk 0:02:23.4]}
15... Be6 {[%clk 0:02:37]} 16. Qf3 {[%clk 0:02:24.4]} 16... Nh7 {[%clk
0:02:33.6]} 17. h4 {[%clk 0:02:22.5]} 17... f5 {[%clk 0:02:19.3]} 18. exf5
{[%clk 0:02:18.5]} 18... Bxf5 {[%clk 0:02:19.7]} 19. Qd1 {[%clk 0:02:16.4]}
19... Qf7 {[%clk 0:02:13.9]} 20. Be3 {[%clk 0:02:13.8]} 20... b6 {[%clk
0:02:04.4]} 21. dxe5 {[%clk 0:02:04.9]} 21... Nxe5 {[%clk 0:02:02.8]} 22. Qxd6
{[%clk 0:02:04.9]} 22... Rae8 {[%clk 0:02:00.1]} 23. Bd4 {[%clk 0:02:00.4]}
23... Re6 {[%clk 0:01:48.5]} 24. Qa3 {[%clk 0:01:44]} 24... Ng4 {[%clk
0:01:29.5]} 25. Nxg4 {[%clk 0:01:41.2]} 25... Bxg4 {[%clk 0:01:29.9]} 26. Bc4
{[%clk 0:01:40.2]} 26... Rxe1+ {[%clk 0:01:30]} 27. Rxe1 {[%clk 0:01:38.5]}
27... Qxc4 {[%clk 0:01:31.3]} 28. Re7 {[%clk 0:01:32.3]} 28... Nf6 {[%clk
0:01:23.8]} 29. Qxa7 {[%clk 0:01:30.6]} 29... Rf7 {[%clk 0:01:23.6]} 30. Bxf6
{[%clk 0:01:21.1]} 30... gxf6 {[%clk 0:01:19.4]} 31. Re8+ {[%clk 0:01:20]} 31...
Kg7 {[%clk 0:01:17.6]} 32. Qb8 {[%clk 0:01:20.2]} 32... Rd7 {[%clk 0:01:12.7]}
33. Re1 {[%clk 0:01:15.4]} 33... Bf3 {[%clk 0:01:07.3]} 34. Qe8 {[%clk
0:01:12.2]} 34... Qf7 {[%clk 0:01:05.6]} 35. Qe3 {[%clk 0:01:11.1]} 35... Bd5
{[%clk 0:01:03.7]} 36. Qxb6 {[%clk 0:01:10.5]} 36... Re7 {[%clk 0:01:05]} 37.
Rd1 {[%clk 0:01:06.8]} 37... Qh5 {[%clk 0:01:02.5]} 38. Qd4 {[%clk 0:01:05.8]}
38... Qf3 {[%clk 0:01:01.5]} 0-1

[Event "*** Titled Tuesday Blitz AM"]
[Site "Chess.com"]
[Date "2020.01.07"]
[Round "9"]
[White "nouma78"]
[Black "Martins-BR"]
[Result "1-0"]
[WhiteElo "2531"]
[BlackElo "2373"]
[TimeControl "180+2"]
[EndTime "11:03:59 PST"]
[Termination "nouma78 won by resignation"]

1. d4 {[%clk 0:03:01.9]} 1... f5 {[%clk 0:03:00.3]} 2. Nc3 {[%clk 0:02:51]} 2...
Nf6 {[%clk 0:02:58.8]} 3. f3 {[%clk 0:02:51.2]} 3... d5 {[%clk 0:02:55.6]} 4.
Bg5 {[%clk 0:02:51.4]} 4... Nc6 {[%clk 0:02:54]} 5. e3 {[%clk 0:02:41.7]} 5...
e6 {[%clk 0:02:53.7]} 6. Bb5 {[%clk 0:02:42.2]} 6... Bd7 {[%clk 0:02:48.9]} 7.
Nge2 {[%clk 0:02:42.8]} 7... Be7 {[%clk 0:02:47]} 8. Nf4 {[%clk 0:02:43]} 8...
O-O {[%clk 0:02:46.3]} 9. Bxc6 {[%clk 0:02:43.3]} 9... bxc6 {[%clk 0:02:46.4]}
10. Na4 {[%clk 0:02:42.5]} 10... Rb8 {[%clk 0:02:43.6]} 11. Rb1 {[%clk
0:02:39.4]} 11... h6 {[%clk 0:02:34.7]} 12. Bxf6 {[%clk 0:02:39.9]} 12... Rxf6
{[%clk 0:02:34.6]} 13. Nd3 {[%clk 0:02:40]} 13... Rg6 {[%clk 0:02:29.9]} 14. O-O
{[%clk 0:02:38.9]} 14... Bd6 {[%clk 0:02:29.6]} 15. Nac5 {[%clk 0:02:33.7]}
15... Be8 {[%clk 0:02:27.1]} 16. f4 {[%clk 0:02:30.4]} 16... Rg4 {[%clk
0:02:00.9]} 17. h3 {[%clk 0:02:25.3]} 17... Rh4 {[%clk 0:01:53.4]} 18. Qe1
{[%clk 0:02:18.8]} 18... Bf7 {[%clk 0:01:48.6]} 19. Kh2 {[%clk 0:02:04.7]} 19...
g5 {[%clk 0:01:44.5]} 20. g3 {[%clk 0:02:05.8]} 20... Rh5 {[%clk 0:01:44.6]} 21.
b4 {[%clk 0:02:02.6]} 21... Qe7 {[%clk 0:01:42.8]} 22. Ne5 {[%clk 0:02:01.4]}
22... Bxe5 {[%clk 0:01:39.5]} 23. dxe5 {[%clk 0:02:01]} 23... Kh7 {[%clk
0:01:38.3]} 24. c3 {[%clk 0:01:56.8]} 24... Rg8 {[%clk 0:01:37.1]} 25. Qf2
{[%clk 0:01:54.4]} 25... Rg6 {[%clk 0:01:29.1]} 26. Rb3 {[%clk 0:01:55]} 26...
a5 {[%clk 0:01:11]} 27. Ra3 {[%clk 0:01:55.7]} 27... axb4 {[%clk 0:01:11.5]} 28.
cxb4 {[%clk 0:01:56.8]} 28... Qf8 {[%clk 0:00:39.9]} 29. Ra6 {[%clk 0:01:46.1]}
29... Qg8 {[%clk 0:00:28.2]} 30. Ra7 {[%clk 0:01:44.4]} 30... Qb8 {[%clk
0:00:27.9]} 31. Rb7 {[%clk 0:01:44.9]} 31... Qc8 {[%clk 0:00:17.9]} 32. a4
{[%clk 0:01:44.2]} 32... Be8 {[%clk 0:00:15.8]} 33. a5 {[%clk 0:01:45.2]} 33...
Qd8 {[%clk 0:00:09.8]} 34. a6 {[%clk 0:01:44.6]} 1-0

[Event "*** Titled Tuesday Blitz AM"]
[Site "Chess.com"]
[Date "2020.01.07"]
[Round "9"]
[White "Vuk2000"]
[Black "KRASAVCHIK2002"]
[Result "1-0"]
[WhiteElo "2670"]
[BlackElo "2472"]
[TimeControl "180+2"]
[EndTime "11:04:06 PST"]
[Termination "Vuk2000 won by resignation"]

1. d4 {[%clk 0:03:01.9]} 1... Nf6 {[%clk 0:03:00.6]} 2. Bg5 {[%clk 0:03:02.8]}
2... e6 {[%clk 0:03:01.2]} 3. e4 {[%clk 0:03:03.6]} 3... h6 {[%clk 0:02:58.2]}
4. Bxf6 {[%clk 0:03:04.7]} 4... Qxf6 {[%clk 0:03:00.1]} 5. c3 {[%clk 0:03:06.6]}
5... d5 {[%clk 0:02:48.5]} 6. Bd3 {[%clk 0:03:07.3]} 6... dxe4 {[%clk
0:02:43.8]} 7. Bxe4 {[%clk 0:03:09.2]} 7... c5 {[%clk 0:02:44.7]} 8. Nf3 {[%clk
0:03:06.2]} 8... cxd4 {[%clk 0:02:43.8]} 9. Nxd4 {[%clk 0:03:01.3]} 9... Bc5
{[%clk 0:02:26.5]} 10. Nf3 {[%clk 0:02:54.2]} 10... O-O {[%clk 0:02:19.1]} 11.
Nbd2 {[%clk 0:02:52.6]} 11... Nd7 {[%clk 0:02:18.9]} 12. Qe2 {[%clk 0:02:50.9]}
12... Qf4 {[%clk 0:02:12.7]} 13. Bc2 {[%clk 0:02:24.4]} 13... Nf6 {[%clk
0:02:05]} 14. Qe5 {[%clk 0:02:19.8]} 14... Qxe5+ {[%clk 0:01:48.6]} 15. Nxe5
{[%clk 0:02:21.7]} 15... Rd8 {[%clk 0:01:50.5]} 16. Ne4 {[%clk 0:02:14]} 16...
Be7 {[%clk 0:01:33.6]} 17. Ke2 {[%clk 0:01:46.2]} 17... b6 {[%clk 0:01:28.7]}
18. Nc6 {[%clk 0:01:43.2]} 18... Rd7 {[%clk 0:01:29.9]} 19. Nxe7+ {[%clk
0:01:40.5]} 19... Rxe7 {[%clk 0:01:31.8]} 20. Nxf6+ {[%clk 0:01:39.8]} 20...
gxf6 {[%clk 0:01:33.3]} 21. Be4 {[%clk 0:01:36.6]} 21... Bb7 {[%clk 0:01:34.7]}
22. Bxb7 {[%clk 0:01:33.1]} 22... Rxb7 {[%clk 0:01:36.6]} 23. Rhd1 {[%clk
0:01:33.6]} 23... Rc8 {[%clk 0:01:32.8]} 24. Rd3 {[%clk 0:01:24.4]} 24... Kh7
{[%clk 0:01:17.4]} 25. Rad1 {[%clk 0:01:22.3]} 25... Rbc7 {[%clk 0:01:07]} 26.
Rd8 {[%clk 0:01:14.2]} 26... Kg6 {[%clk 0:00:47.1]} 27. Rxc8 {[%clk 0:01:13.5]}
27... Rxc8 {[%clk 0:00:47.2]} 28. Rd7 {[%clk 0:01:14.5]} 28... a5 {[%clk
0:00:45.2]} 29. Rd6 {[%clk 0:01:10.2]} 29... b5 {[%clk 0:00:42.7]} 30. Kd3
{[%clk 0:01:11]} 30... Kf5 {[%clk 0:00:40.1]} 31. b3 {[%clk 0:01:03.9]} 31...
Ke5 {[%clk 0:00:37.4]} 32. Ra6 {[%clk 0:01:01.4]} 32... Rc4 {[%clk 0:00:28.1]}
1-0

[Event "*** Titled Tuesday Blitz AM"]
[Site "Chess.com"]
[Date "2020.01.07"]
[Round "9"]
[White "Anna_ChessMate"]
[Black "Grieve72"]
[Result "1-0"]
[WhiteElo "2568"]
[BlackElo "2320"]
[TimeControl "180+2"]
[EndTime "11:04:08 PST"]
[Termination "Anna_ChessMate won by resignation"]

1. d4 {[%clk 0:02:53.7]} 1... f5 {[%clk 0:02:59.4]} 2. c4 {[%clk 0:02:50.6]}
2... Nf6 {[%clk 0:02:59.6]} 3. Nc3 {[%clk 0:02:52.5]} 3... d6 {[%clk 0:02:58.6]}
4. Bg5 {[%clk 0:02:53.3]} 4... Nbd7 {[%clk 0:02:59.9]} 5. Qc2 {[%clk 0:02:52.7]}
5... g6 {[%clk 0:02:59]} 6. h4 {[%clk 0:02:54.1]} 6... c6 {[%clk 0:02:57.9]} 7.
e4 {[%clk 0:02:53]} 7... fxe4 {[%clk 0:02:53.5]} 8. Nxe4 {[%clk 0:02:54.9]} 8...
Bg7 {[%clk 0:02:40.5]} 9. Nf3 {[%clk 0:02:54.2]} 9... h6 {[%clk 0:02:37.1]} 10.
Nxf6+ {[%clk 0:02:53.2]} 10... Nxf6 {[%clk 0:02:21.2]} 11. Qxg6+ {[%clk
0:02:52.8]} 11... Kf8 {[%clk 0:02:22.8]} 12. Bd2 {[%clk 0:02:49.5]} 12... Qe8
{[%clk 0:02:23.1]} 13. Qc2 {[%clk 0:02:47.6]} 13... Qh5 {[%clk 0:02:19]} 14.
O-O-O {[%clk 0:02:43.6]} 14... b5 {[%clk 0:02:06.2]} 15. cxb5 {[%clk 0:02:38.6]}
15... cxb5 {[%clk 0:02:08.1]} 16. Kb1 {[%clk 0:02:39.7]} 16... Bb7 {[%clk
0:02:00.8]} 17. Bd3 {[%clk 0:02:41.1]} 17... Rc8 {[%clk 0:01:54.7]} 18. Qb3
{[%clk 0:02:38.5]} 18... a6 {[%clk 0:01:50.1]} 19. Be3 {[%clk 0:02:32.9]} 19...
Bd5 {[%clk 0:01:43.9]} 20. Qa3 {[%clk 0:02:32.9]} 20... Kf7 {[%clk 0:01:32.8]}
21. Rc1 {[%clk 0:02:29]} 21... Qg4 {[%clk 0:01:26.4]} 22. h5 {[%clk 0:02:16.8]}
22... Ne4 {[%clk 0:01:19.2]} 23. Rh4 {[%clk 0:02:14.6]} 23... Rxc1+ {[%clk
0:01:01.8]} 24. Bxc1 {[%clk 0:02:16.5]} 24... Qe6 {[%clk 0:00:55.8]} 25. Rf4+
{[%clk 0:02:12.9]} 25... Bf6 {[%clk 0:00:53]} 26. Bc2 {[%clk 0:01:52.3]} 26...
Nxf2 {[%clk 0:00:43]} 27. Nd2 {[%clk 0:01:31.5]} 27... Qe1 {[%clk 0:00:29.1]}
28. Qg3 {[%clk 0:01:25.7]} 28... Bxa2+ {[%clk 0:00:13.7]} 29. Kxa2 {[%clk
0:01:26.6]} 29... Qxc1 {[%clk 0:00:14.7]} 30. Qg6+ {[%clk 0:01:28.1]} 30... Ke6
{[%clk 0:00:11.8]} 31. Rxf2 {[%clk 0:01:23]} 31... Rc8 {[%clk 0:00:08.7]} 32.
Qg4+ {[%clk 0:01:20.6]} 32... Kd5 {[%clk 0:00:08.7]} 33. Qxc8 {[%clk 0:01:22.5]}
1-0

[Event "*** Titled Tuesday Blitz AM"]
[Site "Chess.com"]
[Date "2020.01.07"]
[Round "9"]
[White "Gnechko_Ruslan"]
[Black "Hydrargyrum_Girl"]
[Result "1-0"]
[WhiteElo "2477"]
[BlackElo "2223"]
[TimeControl "180+2"]
[EndTime "11:04:10 PST"]
[Termination "Gnechko_Ruslan won by resignation"]

1. e4 {[%clk 0:03:01.9]} 1... e5 {[%clk 0:03:00.1]} 2. Nf3 {[%clk 0:03:02.3]}
2... Nc6 {[%clk 0:03:01.3]} 3. Bc4 {[%clk 0:03:03.7]} 3... Bc5 {[%clk
0:03:01.5]} 4. c3 {[%clk 0:03:05.2]} 4... Nf6 {[%clk 0:03:02]} 5. d3 {[%clk
0:03:06.8]} 5... O-O {[%clk 0:02:53.9]} 6. a4 {[%clk 0:03:07.7]} 6... a5 {[%clk
0:02:52]} 7. Nbd2 {[%clk 0:03:07.9]} 7... d5 {[%clk 0:02:48.4]} 8. exd5 {[%clk
0:03:08.4]} 8... Nxd5 {[%clk 0:02:50.3]} 9. Ne4 {[%clk 0:03:07.5]} 9... Bb6
{[%clk 0:02:30.1]} 10. h3 {[%clk 0:03:08.4]} 10... Nf4 {[%clk 0:02:18.2]} 11.
Bxf4 {[%clk 0:03:05.5]} 11... exf4 {[%clk 0:02:18.7]} 12. O-O {[%clk 0:03:06]}
12... h6 {[%clk 0:01:56.6]} 13. d4 {[%clk 0:03:06]} 13... g5 {[%clk 0:01:55]}
14. Re1 {[%clk 0:02:50.1]} 14... Bf5 {[%clk 0:01:55]} 15. Nh2 {[%clk 0:02:27.3]}
15... Re8 {[%clk 0:01:49.6]} 16. Qh5 {[%clk 0:02:06.8]} 16... Bxe4 {[%clk
0:01:10.9]} 17. Rxe4 {[%clk 0:02:02.4]} 17... Rxe4 {[%clk 0:01:04.5]} 18. Qg6+
{[%clk 0:02:03]} 18... Kh8 {[%clk 0:00:56.3]} 19. Qxh6+ {[%clk 0:02:03.8]} 19...
Kg8 {[%clk 0:00:57]} 20. Qg6+ {[%clk 0:02:04.8]} 20... Kh8 {[%clk 0:00:57.8]}
21. Qxe4 {[%clk 0:01:17.3]} 21... Qe7 {[%clk 0:00:51.7]} 22. Qxe7 {[%clk
0:01:16.7]} 22... Nxe7 {[%clk 0:00:51.8]} 23. Bxf7 {[%clk 0:01:18]} 23... Rf8
{[%clk 0:00:47.6]} 24. Bc4 {[%clk 0:01:15.4]} 24... Kg7 {[%clk 0:00:41.9]} 25.
Re1 {[%clk 0:01:15.1]} 25... Nc8 {[%clk 0:00:41.8]} 26. Nf3 {[%clk 0:01:15.7]}
26... Nd6 {[%clk 0:00:37.8]} 27. Bd5 {[%clk 0:01:11.5]} 27... c6 {[%clk
0:00:35.8]} 28. Bb3 {[%clk 0:01:02.9]} 28... Kg6 {[%clk 0:00:32.4]} 29. Re6+
{[%clk 0:01:02]} 29... Rf6 {[%clk 0:00:33.3]} 30. Bc2+ {[%clk 0:00:55.3]} 30...
Kg7 {[%clk 0:00:31.5]} 31. Nxg5 {[%clk 0:00:55.4]} 31... Rxe6 {[%clk 0:00:30.6]}
32. Nxe6+ {[%clk 0:00:56.2]} 32... Kf6 {[%clk 0:00:29.7]} 33. Nxf4 {[%clk
0:00:56.9]} 33... Nc4 {[%clk 0:00:31.2]} 34. Nd3 {[%clk 0:00:53.7]} 1-0

[Event "*** Titled Tuesday Blitz AM"]
[Site "Chess.com"]
[Date "2020.01.07"]
[Round "9"]
[White "karinachess1"]
[Black "TBergh98"]
[Result "1-0"]
[WhiteElo "2469"]
[BlackElo "2347"]
[TimeControl "180+2"]
[EndTime "11:04:23 PST"]
[Termination "karinachess1 won by resignation"]

1. e4 {[%clk 0:03:01.9]} 1... Nf6 {[%clk 0:03:01]} 2. e5 {[%clk 0:03:02.4]} 2...
Nd5 {[%clk 0:03:02.4]} 3. d4 {[%clk 0:03:02.3]} 3... d6 {[%clk 0:03:03.7]} 4.
Nf3 {[%clk 0:03:03.1]} 4... dxe5 {[%clk 0:03:04.8]} 5. Nxe5 {[%clk 0:03:04.2]}
5... c6 {[%clk 0:03:06.3]} 6. g3 {[%clk 0:03:02.4]} 6... Bf5 {[%clk 0:03:07.3]}
7. Bg2 {[%clk 0:03:02]} 7... e6 {[%clk 0:03:07.2]} 8. O-O {[%clk 0:03:02.6]}
8... Nd7 {[%clk 0:03:08.7]} 9. c3 {[%clk 0:02:45.2]} 9... Nxe5 {[%clk
0:03:08.7]} 10. dxe5 {[%clk 0:02:46]} 10... Be7 {[%clk 0:03:04.2]} 11. Nd2
{[%clk 0:02:39.4]} 11... O-O {[%clk 0:03:04.5]} 12. Ne4 {[%clk 0:02:35.9]} 12...
Qc7 {[%clk 0:03:00.8]} 13. f4 {[%clk 0:02:36]} 13... Rad8 {[%clk 0:02:53.6]} 14.
Qe2 {[%clk 0:02:35.8]} 14... b5 {[%clk 0:02:39.7]} 15. Bd2 {[%clk 0:02:12.1]}
15... a6 {[%clk 0:02:36.6]} 16. g4 {[%clk 0:02:05.9]} 16... Bxe4 {[%clk
0:02:37.2]} 17. Bxe4 {[%clk 0:02:07.8]} 17... Nb6 {[%clk 0:02:35.2]} 18. Rae1
{[%clk 0:02:00.4]} 18... Nc4 {[%clk 0:02:33.8]} 19. Bc1 {[%clk 0:02:01.3]} 19...
Qb6+ {[%clk 0:02:29.4]} 20. Kh1 {[%clk 0:02:00]} 20... Bh4 {[%clk 0:02:04.3]}
21. Rd1 {[%clk 0:01:57.5]} 21... Rxd1 {[%clk 0:02:05.6]} 22. Rxd1 {[%clk
0:01:59.3]} 22... Rd8 {[%clk 0:02:07]} 23. b3 {[%clk 0:01:52.8]} 23... Na5
{[%clk 0:01:50.1]} 24. Rxd8+ {[%clk 0:01:30]} 24... Qxd8 {[%clk 0:01:52]} 25. g5
{[%clk 0:01:24.2]} 25... c5 {[%clk 0:01:28.5]} 26. Qh5 {[%clk 0:01:17.5]} 26...
g6 {[%clk 0:01:27.8]} 27. Qe2 {[%clk 0:01:12.9]} 27... Qc7 {[%clk 0:00:54.5]}
28. Be3 {[%clk 0:01:09.7]} 28... c4 {[%clk 0:00:51.2]} 29. b4 {[%clk 0:01:07]}
29... Nc6 {[%clk 0:00:38.9]} 30. Qd2 {[%clk 0:00:59.2]} 30... Ne7 {[%clk
0:00:34.2]} 31. Qd6 {[%clk 0:00:55.3]} 31... Qxd6 {[%clk 0:00:27.4]} 32. exd6
{[%clk 0:00:56.1]} 32... Nf5 {[%clk 0:00:29.2]} 33. Bxf5 {[%clk 0:00:51.2]}
33... Kf8 {[%clk 0:00:25.4]} 34. Be4 {[%clk 0:00:49.8]} 34... Ke8 {[%clk
0:00:26.2]} 35. Bc6+ {[%clk 0:00:50.4]} 1-0

[Event "*** Titled Tuesday Blitz AM"]
[Site "Chess.com"]
[Date "2020.01.07"]
[Round "9"]
[White "Fandorine"]
[Black "sganerdene"]
[Result "1-0"]
[WhiteElo "2868"]
[BlackElo "2646"]
[TimeControl "180+2"]
[EndTime "11:04:31 PST"]
[Termination "Fandorine won by resignation"]

1. d4 {[%clk 0:02:56.4]} 1... Nf6 {[%clk 0:03:00.5]} 2. Bf4 {[%clk 0:02:57.5]}
2... g6 {[%clk 0:03:01.5]} 3. Nc3 {[%clk 0:02:58.8]} 3... d5 {[%clk 0:03:01.6]}
4. Qd2 {[%clk 0:03:00.2]} 4... Bg7 {[%clk 0:03:01.6]} 5. Bh6 {[%clk 0:03:00]}
5... Bxh6 {[%clk 0:03:01.9]} 6. Qxh6 {[%clk 0:03:01.9]} 6... Bf5 {[%clk
0:03:01.5]} 7. O-O-O {[%clk 0:03:02.4]} 7... Nc6 {[%clk 0:03:00.8]} 8. f3 {[%clk
0:02:55.4]} 8... a6 {[%clk 0:02:37.5]} 9. g4 {[%clk 0:02:50.7]} 9... Be6 {[%clk
0:02:38.6]} 10. Nh3 {[%clk 0:02:49.3]} 10... Qd6 {[%clk 0:02:38.9]} 11. e3
{[%clk 0:02:48]} 11... O-O-O {[%clk 0:02:39.3]} 12. Nf4 {[%clk 0:02:48.7]} 12...
Na5 {[%clk 0:02:26.6]} 13. h4 {[%clk 0:02:38.3]} 13... Rhg8 {[%clk 0:02:21.7]}
14. Nxe6 {[%clk 0:02:33.4]} 14... fxe6 {[%clk 0:02:17.9]} 15. g5 {[%clk
0:02:28.2]} 15... Nh5 {[%clk 0:02:17.7]} 16. Bh3 {[%clk 0:02:24]} 16... Ng3
{[%clk 0:02:12.3]} 17. Rhg1 {[%clk 0:02:23.6]} 17... Nc4 {[%clk 0:02:11.4]} 18.
Rxg3 {[%clk 0:01:57.3]} 18... Qxg3 {[%clk 0:02:01.6]} 19. Bxe6+ {[%clk
0:01:58.1]} 19... Kb8 {[%clk 0:02:02.9]} 20. Bxg8 {[%clk 0:01:59.8]} 20... Rxg8
{[%clk 0:02:03.7]} 21. Qxh7 {[%clk 0:02:01]} 21... Rf8 {[%clk 0:01:59.2]} 22.
Qxe7 {[%clk 0:02:01.4]} 22... Qxf3 {[%clk 0:01:59.3]} 23. Nxd5 {[%clk 0:01:59]}
23... c6 {[%clk 0:01:49.8]} 24. Nf6 {[%clk 0:01:48.9]} 24... Rh8 {[%clk
0:01:50.6]} 25. b3 {[%clk 0:01:27.6]} 25... Nxe3 {[%clk 0:01:50.2]} 26. Rd3
{[%clk 0:01:15.9]} 26... Qf1+ {[%clk 0:01:46.8]} 27. Kb2 {[%clk 0:01:16.8]}
27... Nd1+ {[%clk 0:01:37]} 28. Ka3 {[%clk 0:01:17.7]} 28... Nf2 {[%clk
0:01:38.3]} 29. Nd7+ {[%clk 0:00:51.2]} 29... Ka8 {[%clk 0:01:31.5]} 30. Rf3
{[%clk 0:00:51.3]} 30... Qc1+ {[%clk 0:01:28.7]} 31. Ka4 {[%clk 0:00:49.8]}
31... Qxc2 {[%clk 0:00:40.6]} 32. Rf8+ {[%clk 0:00:49]} 32... Ka7 {[%clk
0:00:41.4]} 33. Qc5+ {[%clk 0:00:49.9]} 33... Qxc5 {[%clk 0:00:41.8]} 34. dxc5
{[%clk 0:00:51.8]} 34... Rxh4+ {[%clk 0:00:28.8]} 35. Ka5 {[%clk 0:00:53.1]}
35... b6+ {[%clk 0:00:18.3]} 36. cxb6+ {[%clk 0:00:53.3]} 1-0

[Event "*** Titled Tuesday Blitz AM"]
[Site "Chess.com"]
[Date "2020.01.07"]
[Round "9"]
[White "LLRChess"]
[Black "Atanejhad"]
[Result "0-1"]
[WhiteElo "2316"]
[BlackElo "2419"]
[TimeControl "180+2"]
[EndTime "11:04:32 PST"]
[Termination "Atanejhad won on time"]

1. e4 {[%clk 0:03:00.3]} 1... e5 {[%clk 0:02:56.6]} 2. Nf3 {[%clk 0:03:01.3]}
2... Nc6 {[%clk 0:02:55.9]} 3. Bb5 {[%clk 0:03:02.5]} 3... a6 {[%clk 0:02:56.4]}
4. Bxc6 {[%clk 0:03:03.2]} 4... dxc6 {[%clk 0:02:58.3]} 5. Nc3 {[%clk
0:03:03.7]} 5... Qf6 {[%clk 0:02:58.7]} 6. d4 {[%clk 0:03:04.7]} 6... exd4
{[%clk 0:03:00.6]} 7. Qxd4 {[%clk 0:03:05.6]} 7... Qxd4 {[%clk 0:02:55.1]} 8.
Nxd4 {[%clk 0:03:06.1]} 8... Bd7 {[%clk 0:02:56.4]} 9. Bf4 {[%clk 0:03:06.7]}
9... O-O-O {[%clk 0:02:55.8]} 10. O-O-O {[%clk 0:03:07.1]} 10... Ne7 {[%clk
0:02:41.1]} 11. f3 {[%clk 0:03:07.5]} 11... Ng6 {[%clk 0:02:30.3]} 12. Be3
{[%clk 0:03:08]} 12... Bd6 {[%clk 0:02:31.6]} 13. g3 {[%clk 0:02:57.8]} 13...
Rhe8 {[%clk 0:02:32.5]} 14. Bf2 {[%clk 0:02:33.6]} 14... Ne5 {[%clk 0:02:17.9]}
15. f4 {[%clk 0:02:23.5]} 15... Ng4 {[%clk 0:02:17.8]} 16. Bg1 {[%clk
0:02:22.3]} 16... Bb4 {[%clk 0:02:13.1]} 17. e5 {[%clk 0:02:19.4]} 17... f6
{[%clk 0:02:11.7]} 18. exf6 {[%clk 0:02:11]} 18... gxf6 {[%clk 0:02:12.5]} 19.
h3 {[%clk 0:01:59.1]} 19... Ne3 {[%clk 0:02:13.1]} 20. Bxe3 {[%clk 0:01:35]}
20... Rxe3 {[%clk 0:02:15]} 21. Nde2 {[%clk 0:01:32.8]} 21... Rde8 {[%clk
0:02:10.9]} 22. Rh2 {[%clk 0:01:13.4]} 22... h5 {[%clk 0:02:09.6]} 23. Rd3
{[%clk 0:01:07.5]} 23... Rxd3 {[%clk 0:01:48.5]} 24. cxd3 {[%clk 0:01:07.6]}
24... Bf5 {[%clk 0:01:47.5]} 25. Kd2 {[%clk 0:00:50]} 25... Bc5 {[%clk
0:01:38.8]} 26. Nc1 {[%clk 0:00:30.9]} 26... Be3+ {[%clk 0:01:36.4]} 27. Kc2
{[%clk 0:00:31.4]} 27... Bxc1 {[%clk 0:01:19.9]} 28. Kxc1 {[%clk 0:00:28.4]}
28... Re3 {[%clk 0:01:18.1]} 29. g4 {[%clk 0:00:10.8]} 29... hxg4 {[%clk
0:01:17.6]} 30. hxg4 {[%clk 0:00:11.7]} 30... Bxg4 {[%clk 0:01:19.5]} 31. Ne4
{[%clk 0:00:04.7]} 31... b6 {[%clk 0:01:15.3]} 0-1